bitfinex/quotes_SOLUSD_20250701
["timestamp","ask_amount","ask_price","bid_price","bid_amount"]
[1751372659019,4.55349528,148.62,148.58,4.65349528]
[1751372659541,4.55349528,148.61,148.58,0.1]
[1751372661003,4.55349528,148.59,148.58,0.1]
[1751372661845,30.55349528,148.59,148.58,0.1]
[1751372662302,26.0,148.59,148.58,0.1]
[1751372662511,30.55349528,148.59,148.58,0.1]
[1751372665328,26.0,148.59,148.58,0.1]
[1751372665524,30.55349528,148.59,148.58,0.1]
[1751372666113,4.55349528,148.6,148.58,0.1]
[1751372666627,26.0,148.61,148.58,0.1]
[1751372666819,4.55349528,148.6,148.58,0.1]
[1751372668850,26.0,148.61,148.58,0.1]
[1751372669142,26.0,148.62,148.58,0.1]
[1751372669537,26.0,148.62,148.59,4.55349528]
[1751372669909,26.0,148.62,148.58,0.1]
[1751372670137,30.55349528,148.63,148.59,4.55349528]
[1751372670635,26.0,148.63,148.59,4.55349528]
[1751372670814,4.55349528,148.61,148.58,0.1]
[1751372671016,26.0,148.63,148.58,4.65349528]
[1751372671017,4.55349528,148.62,148.58,4.65349528]
[1751372671537,26.0,148.63,148.58,4.65349528]
[1751372671839,4.55349528,148.62,148.58,4.65349528]
[1751372672024,30.55349528,148.63,148.59,4.55349528]
[1751372673648,26.0,148.63,148.58,4.79565685]
[1751372673836,4.55349528,148.62,148.58,4.79565685]
[1751372674645,26.0,148.63,148.58,4.79565685]
[1751372674851,4.55349528,148.62,148.58,0.24216157]
[1751372675271,4.55349528,148.62,148.58,4.79565685]
[1751372675925,30.55349528,148.63,148.59,4.55349528]
[1751372677145,4.55349528,148.62,148.58,4.79565685]
[1751372677820,4.55349528,148.61,148.58,0.1]
[1751372678445,26.0,148.63,148.58,0.1]
[1751372678651,4.55349528,148.62,148.58,4.65349528]
[1751372678852,4.55349528,148.62,148.58,0.1]
[1751372679054,4.55349528,148.62,148.58,4.65349528]
[1751372679552,26.0,148.63,148.58,4.65349528]
[1751372679848,4.55349528,148.61,148.58,4.65349528]
[1751372682249,4.55349528,148.61,148.58,0.1]
[1751372682661,4.55349528,148.62,148.58,4.65349528]
[1751372683044,26.0,148.63,148.58,4.65349528]
[1751372683245,4.55349528,148.62,148.58,4.65349528]
[1751372683434,30.55349528,148.63,148.59,4.55349528]
[1751372683756,26.2,148.65,148.6,4.55349528]
[1751372683930,30.75349528,148.65,148.61,4.55349528]
[1751372684340,30.75349528,148.65,148.58,147.8]
[1751372684341,4.55349528,148.64,148.6,4.55349528]
[1751372684734,4.55349528,148.63,148.59,0.14216157]
[1751372685035,4.55349528,148.64,148.6,4.55349528]
[1751372685528,26.2,148.65,148.6,4.55349528]
[1751372685843,4.55349528,148.64,148.6,4.55349528]
[1751372686446,4.55349528,148.63,148.59,4.55349528]
[1751372687662,26.2,148.65,148.59,4.55349528]
[1751372687858,4.55349528,148.63,148.59,4.55349528]
[1751372688544,4.55349528,148.63,148.58,0.24216157]
[1751372688841,4.55349528,148.63,148.59,4.55349528]
[1751372689571,26.2,148.65,148.59,4.55349528]
[1751372689740,4.55349528,148.64,148.6,4.55349528]
[1751372691054,4.55349528,148.63,148.59,4.55349528]
[1751372692258,4.55349528,148.62,148.58,0.1]
[1751372692558,4.55349528,148.61,148.58,0.1]
[1751372692861,26.0,148.64,148.58,4.65349528]
[1751372692862,4.55349528,148.62,148.58,4.65349528]
[1751372693458,4.55349528,148.62,148.58,0.1]
[1751372693857,4.55349528,148.62,148.58,4.65349528]
[1751372694059,26.0,148.64,148.58,0.1]
[1751372694060,4.55349528,148.61,148.58,0.1]
[1751372694754,4.55349528,148.6,148.58,0.1]
[1751372696350,4.55349528,148.61,148.58,0.1]
[1751372696661,4.55349528,148.6,148.58,0.1]
[1751372697644,4.55349528,148.61,148.58,0.1]
[1751372700664,26.0,148.62,148.58,0.1]
[1751372700970,4.55349528,148.61,148.58,0.1]
[1751372702957,4.55349528,148.6,148.58,0.1]
[1751372703771,4.55349528,148.59,148.58,0.1]
[1751372703970,30.55349528,148.59,148.58,0.1]
[1751372705076,49.20314414,148.59,148.58,0.1]
[1751372707778,30.55349528,148.59,148.58,0.1]
[1751372710667,26.0,148.59,148.58,0.1]
[1751372710874,30.55349528,148.59,148.58,0.1]
[1751372711390,4.55349528,148.62,148.58,4.65349528]
[1751372711755,7.26,148.63,148.58,0.1]
[1751372711756,30.55349528,148.6,148.58,0.1]
[1751372712286,26.0,148.6,148.58,0.1]
[1751372712580,7.26,148.63,148.58,4.65349528]
[1751372712788,26.0,148.6,148.58,4.65349528]
[1751372713589,4.55349528,148.62,148.58,4.65349528]
[1751372713989,26.0,148.6,148.58,0.1]
[1751372715967,30.55349528,148.6,148.58,0.1]
[1751372717470,26.0,148.6,148.58,0.1]
[1751372717677,4.55349528,148.59,148.58,0.1]
[1751372717981,30.55349528,148.6,148.58,0.1]
[1751372719181,4.55349528,148.59,148.58,0.1]
[1751372720483,30.55349528,148.6,148.58,0.1]
[1751372721587,4.55349528,148.6,148.58,0.1]
[1751372723568,4.55349528,148.59,148.58,0.1]
[1751372723988,30.55349528,148.59,148.58,0.1]
[1751372730287,49.20314414,148.59,148.58,0.1]
[1751372733696,44.64964886,148.59,148.58,0.1]
[1751372733992,49.20314414,148.59,148.58,0.1]
[1751372741598,1.5063,148.57,148.52,0.1]
[1751372741772,23.20314414,148.53,148.52,0.1]
[1751372742188,18.64964886,148.53,148.52,0.1]
[1751372744174,4.55349528,148.58,148.52,0.1]
[1751372744378,8.0228,148.62,148.53,4.55349528]
[1751372744379,4.55349528,148.57,148.53,4.55349528]
[1751372744573,26.0,148.57,148.53,4.55349528]
[1751372744773,30.55349528,148.57,148.53,4.55349528]
[1751372744970,18.64964886,148.6,148.53,4.55349528]
[1751372745197,4.55349528,148.57,148.53,4.55349528]
[1751372745392,30.55349528,148.57,148.53,4.55349528]
[1751372746697,26.0,148.59,148.54,4.55349528]
[1751372746879,4.55349528,148.58,148.53,4.55349528]
[1751372747089,26.0,148.58,148.52,0.1]
[1751372747277,4.55349528,148.58,148.54,6.19819528]
[1751372747781,4.55349528,148.58,148.54,1.6447]
[1751372748088,30.55349528,148.59,148.54,6.19819528]
[1751372748402,4.55349528,148.58,148.54,6.19819528]
[1751372749619,26.0,148.59,148.54,6.19819528]
[1751372749785,4.55349528,148.58,148.54,6.19819528]
[1751372750697,4.55349528,148.59,148.55,4.55349528]
[1751372751501,4.55349528,148.59,148.54,6.19819528]
[1751372752201,4.55349528,148.57,148.54,1.6447]
[1751372752401,4.55349528,148.56,148.54,1.6447]
[1751372752699,4.55349528,148.57,148.54,1.6447]
[1751372755809,26.0,148.61,148.54,1.6447]
[1751372756107,4.55349528,148.57,148.54,1.6447]
[1751372760507,30.55349528,148.61,148.54,1.6447]
[1751372760716,4.55349528,148.59,148.55,4.55349528]
[1751372761311,4.55349528,148.59,148.54,1.6447]
[1751372761508,4.55349528,148.58,148.54,6.19819528]
[1751372762508,4.55349528,148.58,148.54,1.6447]
[1751372762812,4.55349528,148.55,148.53,0.1]
[1751372762999,4.55349528,148.54,148.53,0.1]
[1751372765416,4.55349528,148.56,148.53,0.1]
[1751372765716,4.55349528,148.57,148.53,0.1]
[1751372766013,4.55349528,148.58,148.53,4.79565685]
[1751372766203,4.55349528,148.58,148.54,4.55349528]
[1751372766513,4.55349528,148.59,148.55,4.55349528]
[1751372766721,4.55349528,148.59,148.54,4.55349528]
[1751372767094,4.55349528,148.59,148.55,4.55349528]
[1751372767393,26.0,148.61,148.55,4.55349528]
[1751372767599,4.55349528,148.59,148.55,4.55349528]
[1751372768000,4.75349528,148.59,148.55,4.55349528]
[1751372768216,4.75349528,148.59,148.54,152.39565685]
[1751372768217,4.55349528,148.58,148.54,152.39565685]
[1751372768422,4.55349528,148.58,148.54,4.55349528]
[1751372769114,0.2,148.59,148.53,4.79565685]
[1751372769115,4.55349528,148.57,148.53,4.79565685]
[1751372769813,4.55349528,148.58,148.54,4.55349528]
[1751372770626,4.55349528,148.58,148.53,0.24216157]
[1751372770805,4.55349528,148.58,148.54,4.55349528]
[1751372771423,4.55349528,148.57,148.53,4.79565685]
[1751372771611,0.2,148.59,148.53,0.1]
[1751372771612,4.55349528,148.56,148.53,0.1]
[1751372771818,0.2,148.59,148.53,0.1]
[1751372771819,4.55349528,148.55,148.53,0.1]
[1751372772322,4.55349528,148.54,148.53,0.1]
[1751372773720,4.55349528,148.55,148.53,0.1]
[1751372776805,4.55349528,148.56,148.53,0.1]
[1751372778938,4.55349528,148.55,148.53,0.1]
[1751372780230,26.0,148.58,148.53,0.1]
[1751372780428,4.55349528,148.56,148.53,0.1]
[1751372780935,26.0,148.58,148.53,0.1]
[1751372781229,4.55349528,148.56,148.53,0.1]
[1751372781531,4.55349528,148.55,148.53,0.1]
[1751372782631,26.0,148.58,148.53,0.1]
[1751372782824,4.55349528,148.55,148.53,0.1]
[1751372783936,26.0,148.58,148.53,0.1]
[1751372784139,4.55349528,148.55,148.53,0.1]
[1751372785523,4.55349528,148.54,148.53,0.1]
[1751372795651,49.20314414,148.54,148.53,0.1]
[1751372796051,27.75663942,148.54,148.53,0.1]
[1751372796953,23.20314414,148.54,148.53,0.1]
[1751372797724,27.75663942,148.54,148.53,0.1]
[1751372800453,18.64964886,148.54,148.53,0.1]
[1751372800655,27.75663942,148.54,148.53,0.1]
[1751372801648,18.64964886,148.54,148.53,0.1]
[1751372801848,4.55349528,148.54,148.53,0.1]
[1751372803230,26.0,148.55,148.53,0.1]
[1751372803550,4.55349528,148.56,148.53,0.1]
[1751372803748,4.55349528,148.57,148.53,0.1]
[1751372804346,0.2,148.59,148.55,4.55349528]
[1751372804631,0.2,148.59,148.56,4.55349528]
[1751372805064,0.2,148.59,148.55,4.55349528]
[1751372805430,0.2,148.59,148.56,4.55349528]
[1751372806248,0.2,148.59,148.54,4.55349528]
[1751372806448,4.55349528,148.58,148.54,4.55349528]
[1751372806930,4.55349528,148.57,148.53,0.1]
[1751372807644,26.0,148.58,148.53,0.1]
[1751372807850,4.55349528,148.57,148.53,0.1]
[1751372808358,4.55349528,148.57,148.53,4.65349528]
[1751372808658,30.55349528,148.58,148.54,4.55349528]
[1751372809467,30.55349528,148.58,148.53,0.24216157]
[1751372809634,30.55349528,148.58,148.54,4.55349528]
[1751372809953,0.2,148.59,148.54,4.55349528]
[1751372810138,4.55349528,148.58,148.54,4.55349528]
[1751372810645,4.75349528,148.59,148.54,4.55349528]
[1751372810844,0.2,148.59,148.55,4.55349528]
[1751372812437,4.75349528,148.59,148.55,4.55349528]
[1751372814342,4.55349528,148.58,148.53,147.94216157]
[1751372814659,4.55349528,148.58,148.53,152.49565685]
[1751372814958,4.55349528,148.58,148.54,4.55349528]
[1751372815748,18.64964886,148.54,148.53,0.1]
[1751372815954,18.64964886,148.54,148.49,0.1]
[1751372815955,18.64964886,148.5,148.49,0.1]
[1751372816263,44.64964886,148.48,148.47,0.1]
[1751372816432,52.53188627,148.48,148.47,0.1]
[1751372816636,26.0,148.51,148.47,0.1]
[1751372816840,30.55349528,148.48,148.47,0.1]
[1751372817342,4.55349528,148.48,148.47,0.1]
[1751372817553,26.0,148.5,148.47,0.1]
[1751372817756,30.55349528,148.5,148.47,1.7544]
[1751372818449,26.0,148.53,148.47,1.7544]
[1751372818755,4.55349528,148.49,148.47,1.7544]
[1751372818953,4.55349528,148.48,148.47,0.1]
[1751372821134,26.0,148.53,148.47,0.1]
[1751372821340,4.55349528,148.5,148.47,0.1]
[1751372821755,26.0,148.53,148.47,0.1]
[1751372821955,4.55349528,148.5,148.47,0.1]
[1751372822744,44.64964886,148.45,148.44,1.4215319]
[1751372822945,10.0,148.33,148.25,33.3802586]
[1751372823153,10.0,148.33,148.14,1.4215319]
[1751372823154,13.40919924,148.26,148.15,33.41561862]
[1751372823343,4.55349528,148.22,148.15,33.41561862]
[1751372823557,3.34908267,148.26,148.17,3.52046248]
[1751372823758,4.95308982,148.35,148.19,4.55349528]
[1751372823964,4.55349528,148.31,148.26,4.55349528]
[1751372824260,4.55349528,148.34,148.29,4.55349528]
[1751372824465,6.64292218,148.44,148.33,4.55349528]
[1751372824466,4.93978601,148.44,148.33,4.55349528]
[1751372824640,4.55349528,148.4,148.35,4.55349528]
[1751372824846,4.55349528,148.4,148.36,0.14216157]
[1751372825064,4.55349528,148.41,148.36,4.55349528]
[1751372825252,38.46,148.48,148.27,10.0]
[1751372825562,4.55349528,148.37,148.32,0.14216157]
[1751372825750,4.55349528,148.37,148.29,7.74216157]
[1751372825751,7.8662408,148.34,148.29,41.4662408]
[1751372826156,7.8662408,148.33,148.29,33.6]
[1751372826665,7.8662408,148.35,148.31,0.14216157]
[1751372826866,7.8662408,148.34,148.29,41.4662408]
[1751372827364,7.8662408,148.34,148.3,0.14216157]
[1751372828062,26.0,148.42,148.3,26.94237437]
[1751372828253,26.0,148.38,148.32,26.65805123]
[1751372828437,48.39,148.47,148.34,8.00840237]
[1751372828641,7.92,148.47,148.37,0.14216157]
[1751372828838,7.8662408,148.39,148.36,0.14216157]
[1751372829259,7.8662408,148.4,148.36,0.14216157]
[1751372829751,7.8662408,148.4,148.36,8.00840237]
[1751372830056,6.29404674,148.38,148.36,0.14216157]
[1751372830879,6.29404674,148.38,148.34,0.14216157]
[1751372831171,6.29404674,148.38,148.36,0.14216157]
[1751372831347,6.29404674,148.38,148.36,7.8662408]
[1751372832668,6.29404674,148.38,148.35,0.14216157]
[1751372833459,6.29404674,148.38,148.36,7.8662408]
[1751372834343,7.8662408,148.4,148.36,7.8662408]
[1751372834739,7.8662408,148.41,148.37,7.8662408]
[1751372835048,7.8662408,148.42,148.37,7.8662408]
[1751372835246,33.8662408,148.43,148.35,0.28432314]
[1751372835473,33.8662408,148.43,148.38,7.8662408]
[1751372835675,7.8662408,148.43,148.38,7.8662408]
[1751372835975,26.0,148.43,148.38,7.8662408]
[1751372836487,7.8662408,148.42,148.38,7.8662408]
[1751372838662,33.8662408,148.43,148.38,7.8662408]
[1751372839269,0.2,148.48,148.42,8.00840237]
[1751372839468,0.2,148.48,148.45,7.8662408]
[1751372842363,0.2,148.48,148.46,7.8662408]
[1751372843166,0.2,148.48,148.47,26.94237437]
[1751372844272,0.2,148.48,148.47,19.07613357]
[1751372844477,0.2,148.48,148.47,26.94237437]
[1751372845076,0.2,148.48,148.47,19.07613357]
[1751372845278,0.2,148.48,148.47,26.94237437]
[1751372846903,0.2,148.48,148.47,52.94237437]
[1751372850599,0.2,148.48,148.47,59.67774178]
[1751372851191,0.2,148.54,148.49,0.14216157]
[1751372851504,0.2,148.54,148.53,8.00840237]
[1751372851877,0.2,148.54,148.53,0.14216157]
[1751372853191,0.2,148.54,148.53,8.29272551]
[1751372855703,26.0,148.5,148.38,6.1648]
[1751372855914,7.8662408,148.43,148.38,6.1648]
[1751372856112,7.8662408,148.43,148.38,14.0310408]
[1751372856410,7.8662408,148.44,148.4,0.14216157]
[1751372856582,7.8662408,148.44,148.41,0.14216157]
[1751372856785,7.8662408,148.45,148.4,7.8662408]
[1751372856987,7.8662408,148.45,148.41,0.14216157]
[1751372857213,7.8662408,148.45,148.4,7.8662408]
[1751372857509,7.8662408,148.44,148.4,7.8662408]
[1751372858201,7.8662408,148.45,148.41,7.8662408]
[1751372859498,7.8662408,148.48,148.43,7.8662408]
[1751372859684,26.51588966,148.45,148.37,118.92959103]
[1751372859883,26.0,148.46,148.3,6.745]
[1751372859884,7.8662408,148.38,148.3,6.745]
[1751372860089,7.8662408,148.36,148.32,7.8662408]
[1751372860498,7.8662408,148.38,148.33,8.00840237]
[1751372860705,7.8662408,148.38,148.33,7.8662408]
[1751372861092,26.0,148.4,148.34,0.14216157]
[1751372861407,26.0,148.4,148.33,7.8662408]
[1751372861408,26.0,148.4,148.35,8.00840237]
[1751372861591,26.0,148.43,148.37,7.8662408]
[1751372861797,7.8662408,148.41,148.37,7.8662408]
[1751372862683,7.8662408,148.41,148.35,0.14216157]
[1751372862684,7.8662408,148.42,148.38,7.8662408]
[1751372862884,33.8662408,148.43,148.38,7.8662408]
[1751372863080,7.8662408,148.43,148.38,7.8662408]
[1751372863508,1.6555,148.49,148.4,7.8662408]
[1751372863709,20.30514886,148.49,148.42,7.8662408]
[1751372863893,7.8662408,148.46,148.42,7.8662408]
[1751372865109,7.8662408,148.45,148.41,7.8662408]
[1751372866510,33.8662408,148.46,148.42,7.8662408]
[1751372867212,33.8662408,148.46,148.4,0.14216157]
[1751372867411,7.8662408,148.45,148.4,0.14216157]
[1751372867707,7.8662408,148.45,148.41,7.8662408]
[1751372867901,26.0,148.46,148.41,7.8662408]
[1751372868209,7.8662408,148.45,148.41,7.8662408]
[1751372868412,7.8662408,148.45,148.4,0.14216157]
[1751372868603,7.8662408,148.45,148.41,7.8662408]
[1751372868792,7.8662408,148.45,148.4,0.14216157]
[1751372868996,7.8662408,148.42,148.37,7.8662408]
[1751372869314,7.8662408,148.42,148.38,8.00840237]
[1751372869887,7.8662408,148.42,148.41,0.1]
[1751372871619,33.8662408,148.42,148.41,0.1]
[1751372877121,26.0,148.42,148.41,0.1]
[1751372877299,33.8662408,148.42,148.41,0.1]
[1751372879098,1.8555,148.49,148.41,0.1]
[1751372879305,33.8662408,148.43,148.41,0.1]
[1751372880517,26.0,148.43,148.41,0.1]
[1751372880694,33.8662408,148.43,148.41,0.1]
[1751372881094,26.0,148.43,148.41,0.1]
[1751372881299,33.8662408,148.43,148.41,0.1]
[1751372882024,26.0,148.45,148.41,0.1]
[1751372882236,7.8662408,148.43,148.41,0.1]
[1751372882720,26.0,148.45,148.41,0.1]
[1751372882926,7.8662408,148.44,148.41,0.1]
[1751372884906,7.8662408,148.45,148.41,0.1]
[1751372885818,26.0,148.47,148.41,0.1]
[1751372886024,7.8662408,148.46,148.41,7.9662408]
[1751372887530,7.8662408,148.46,148.42,7.8662408]
[1751372887740,0.2,148.49,148.45,7.8662408]
[1751372887909,0.2,148.49,148.46,7.8662408]
[1751372888305,0.2,148.49,148.44,0.14216157]
[1751372888306,8.0662408,148.49,148.45,7.8662408]
[1751372889233,8.0662408,148.49,148.44,8.00840237]
[1751372889419,7.8662408,148.48,148.44,8.00840237]
[1751372889733,8.0662408,148.49,148.44,7.8662408]
[1751372891810,8.0662408,148.49,148.45,7.8662408]
[1751372892225,8.0662408,148.49,148.42,19.07613357]
[1751372892516,0.2,148.49,148.42,166.77613357]
[1751372892724,7.8662408,148.48,148.44,7.8662408]
[1751372893319,0.2,148.49,148.47,7.8662408]
[1751372893814,0.2,148.49,148.46,4.57839682]
[1751372894418,0.2,148.49,148.48,4.72055839]
[1751372894823,0.2,148.49,148.47,4.57839682]
[1751372895316,0.2,148.49,148.48,4.57839682]
[1751372896811,0.2,148.49,148.48,4.72055839]
[1751372901327,0.2,148.49,148.48,0.14216157]
[1751372901535,0.2,148.49,148.48,4.72055839]
[1751372902032,0.2,148.49,148.48,23.65453039]
[1751372902232,0.2,148.54,148.49,0.42648471]
[1751372902440,0.2,148.54,148.53,4.72055839]
[1751372908337,0.2,148.54,148.53,5.00488153]
[1751372909421,0.2,148.54,148.53,23.65453039]
[1751372910323,0.2,148.54,148.53,34.53772721]
[1751372911175,0.2,148.54,148.53,63.07772721]
[1751372912353,0.2,148.54,148.53,69.81037381]
[1751372913150,0.2,148.54,148.53,71.44847381]
[1751372913353,0.2,148.55,148.54,27.94860407]
[1751372914024,0.1157,148.59,148.55,0.28432314]
[1751372914230,0.1157,148.59,148.58,5.00488153]
[1751372917831,0.1157,148.59,148.58,23.65453039]
[1751372918641,0.1157,148.59,148.58,30.38491132]
[1751372919145,0.1157,148.59,148.58,23.65453039]
[1751372919654,0.1157,148.59,148.58,30.38491132]
[1751372921739,0.2,148.6,148.59,18.79181043]
[1751372921961,0.2,148.6,148.59,56.65292721]
[1751372922831,0.2,148.6,148.59,52.07453039]
[1751372927360,0.2,148.6,148.59,28.52216157]
[1751372927566,0.2,148.6,148.59,4.57839682]
[1751372927731,0.2,148.6,148.58,32.95839682]
[1751372928136,0.2,148.6,148.58,4.57839682]
[1751372928773,0.2,148.6,148.59,4.72055839]
[1751372929539,0.2,148.6,148.59,5.00488153]
[1751372929738,0.2,148.6,148.59,52.03453039]
[1751372932344,0.2,148.62,148.59,56.61292721]
[1751372932550,0.2,148.62,148.61,9.58327835]
[1751372932765,0.2,148.62,148.61,38.02327835]
[1751372933677,0.2,148.62,148.61,52.09453039]
[1751372933976,0.2,148.62,148.61,0.42648471]
[1751372934279,0.2,148.62,148.61,47.51613357]
[1751372934446,0.2,148.62,148.61,52.09453039]
[1751372935052,4.77839682,148.62,148.54,6.0274]
[1751372935242,0.2,148.62,148.59,4.57839682]
[1751372935456,0.2,148.62,148.6,4.57839682]
[1751372935661,0.2,148.62,148.6,33.01839682]
[1751372937649,0.2,148.62,148.6,28.44]
[1751372939259,0.2,148.62,148.6,33.01839682]
[1751372940881,4.57839682,148.61,148.59,0.1]
[1751372946786,26.2,148.62,148.59,4.67839682]
[1751372946988,26.2,148.62,148.59,0.1]
[1751372947188,30.77839682,148.62,148.59,0.1]
[1751372947861,26.2,148.62,148.59,4.67839682]
[1751372949986,26.2,148.62,148.59,0.1]
[1751372950163,26.2,148.62,148.59,4.67839682]
[1751372950363,26.2,148.62,148.59,0.1]
[1751372950572,26.2,148.62,148.59,4.67839682]
[1751372951885,0.2,148.62,148.59,4.67839682]
[1751372953811,0.2,148.62,148.59,0.1]
[1751372954083,4.77839682,148.62,148.59,0.1]
[1751372954693,4.77839682,148.62,148.59,4.67839682]
[1751372954694,0.2,148.62,148.59,4.67839682]
[1751372957081,0.2,148.62,148.59,152.37839682]
[1751372957988,0.2,148.62,148.59,147.8]
[1751372958590,0.2,148.62,148.59,152.37839682]
[1751372959483,0.2,148.62,148.59,147.8]
[1751372960594,4.57839682,148.61,148.59,147.8]
[1751372960965,0.2,148.62,148.59,147.8]
[1751372961171,4.57839682,148.61,148.59,147.8]
[1751372963085,4.57839682,148.61,148.59,0.1]
[1751372963292,26.2,148.62,148.59,0.1]
[1751372963492,4.57839682,148.61,148.59,0.1]
[1751372963902,26.2,148.62,148.59,0.1]
[1751372964114,30.77839682,148.62,148.59,0.1]
[1751372966106,4.57839682,148.61,148.59,0.1]
[1751372966497,30.77839682,148.62,148.59,0.1]
[1751372968111,26.2,148.62,148.59,0.1]
[1751372968497,30.77839682,148.62,148.59,0.1]
[1751372969185,26.2,148.62,148.59,0.1]
[1751372970000,26.2,148.62,148.59,4.67839682]
[1751372973018,0.2,148.62,148.59,4.67839682]
[1751372973718,0.2,148.62,148.6,4.57839682]
[1751372974796,0.2,148.62,148.6,152.27839682]
[1751372978011,0.2,148.62,148.61,4.57839682]
[1751372979306,0.2,148.62,148.61,152.27839682]
[1751372984535,0.2,148.62,148.61,147.7]
[1751372984723,0.2,148.62,148.61,152.27839682]
[1751372986927,0.2,148.62,148.61,147.7]
[1751372989530,0.2,148.62,148.59,4.67839682]
[1751372989531,0.2,148.62,148.6,147.7]
[1751372991424,0.2,148.62,148.6,152.27839682]
[1751372995337,0.2,148.62,148.59,28.16]
[1751372995338,4.77839682,148.62,148.59,147.8]
[1751372995540,4.57839682,148.6,148.59,147.8]
[1751372996137,0.2,148.62,148.59,147.8]
[1751372996332,4.57839682,148.6,148.59,147.8]
[1751372996747,4.57839682,148.6,148.59,0.1]
[1751372997421,4.53570671,148.6,148.59,0.1]
[1751373000251,30.57839682,148.61,148.59,0.1]
[1751373000441,0.2,148.62,148.59,0.1]
[1751373000442,4.77839682,148.62,148.59,0.1]
[1751373000640,0.2,148.62,148.59,28.16]
[1751373000847,0.2,148.62,148.6,4.57839682]
[1751373001835,0.2,148.62,148.59,0.1]
[1751373002040,0.2,148.62,148.59,4.67839682]
[1751373002945,0.2,148.62,148.61,4.57839682]
[1751373003144,0.2,148.62,148.61,57.61470407]
[1751373004569,0.2,148.62,148.61,34.38665839]
[1751373005929,0.2,148.62,148.61,32.76055839]
[1751373007260,0.2,148.62,148.61,180.46055839]
[1751373008335,0.2,148.62,148.61,203.97292721]
[1751373008535,0.2,148.62,148.61,194.81613357]
[1751373008932,0.2,148.62,148.61,199.39453039]
[1751373009740,0.2,148.62,148.61,180.46055839]
[1751373010144,0.2,148.62,148.61,152.27839682]
[1751373010342,0.2,148.62,148.61,147.7]
[1751373012256,0.2,148.62,148.6,147.8]
[1751373016173,0.2,148.62,148.6,152.37839682]
[1751373017380,0.2,148.62,148.6,147.8]
[1751373017868,0.2,148.62,148.6,152.37839682]
[1751373018076,0.2,148.62,148.6,147.8]
[1751373018975,0.2,148.62,148.6,0.1]
[1751373022066,0.2,148.62,148.6,147.8]
[1751373023578,0.2,148.62,148.6,152.37839682]
[1751373024082,0.2,148.62,148.61,32.61839682]
[1751373025186,0.2,148.64,148.63,0.14216157]
[1751373025380,0.2,148.64,148.63,180.26055839]
[1751373026047,0.2,148.64,148.63,199.19453039]
[1751373029982,0.2,148.64,148.63,205.92264719]
[1751373030279,0.2,148.65,148.64,167.89273357]
[1751373030483,0.2,148.65,148.64,172.47113039]
[1751373030982,0.2,148.65,148.64,184.20822]
[1751373031683,0.2,148.65,148.64,178.87333039]
[1751373031870,0.2,148.65,148.64,185.60099454]
[1751373036167,0.2,148.65,148.64,178.87333039]
[1751373036361,0.2,148.65,148.64,185.60099454]
[1751373036789,0.2,148.67,148.66,165.69181043]
[1751373036987,0.2,148.67,148.66,198.29020725]
[1751373038782,0.2,148.67,148.66,198.57453039]
[1751373041991,0.2,148.67,148.66,198.29020725]
[1751373044271,0.2,148.67,148.66,179.64055839]
[1751373046891,0.2,148.67,148.66,198.29020725]
[1751373048406,0.2,148.67,148.66,146.9]
[1751373048604,4.77839682,148.67,148.64,146.9]
[1751373048884,4.57839682,148.66,148.64,146.9]
[1751373049084,4.57839682,148.65,148.64,146.9]
[1751373051590,4.57839682,148.65,148.61,146.9]
[1751373051769,26.2,148.67,148.61,174.9]
[1751373051770,4.57839682,148.63,148.61,174.9]
[1751373052990,4.57839682,148.64,148.61,174.9]
[1751373053797,4.57839682,148.65,148.61,174.9]
[1751373054389,4.57839682,148.65,148.61,179.47839682]
[1751373055391,4.57839682,148.65,148.61,174.9]
[1751373056890,4.57839682,148.66,148.61,179.47839682]